fUST/lending_fUST_20241219
["ID","MTS","AMOUNT","RATE_DAILY","PERIOD"]
[345937152,1734555046598,-175.0,0.00022,2]
[345937154,1734555046616,-175.0,0.00022192,2]
[345937156,1734555046626,-151.0,0.000229,8]
[345937158,1734555046639,-849.96728211,0.00024,4]
[345937161,1734555046651,-206147.04672561,0.00024,4]
[345937163,1734555046663,-360.87,0.00024,4]
[345937165,1734555046674,-549.742494,0.00024,4]
[345937167,1734555046685,-69985.95121005,0.00024,4]
[345937170,1734555046697,-850931.58751663,0.00024,4]
[345937172,1734555046708,-2010.0,0.00024,4]
[345937174,1734555046723,-10040.0,0.00024,4]
[345939497,1734555977206,164.43305,0.00013973,2]
[345939552,1734556232861,-427.16573656,0.0002112,2]
[345939554,1734556232877,-745.645864,0.00021333,2]
[345939556,1734556232886,-292.16963191,0.00021696,2]
[345940095,1734556239086,-1028.50029429,0.00021696,2]
[345940097,1734556239096,-452.9153962,0.00021736,2]
[345940099,1734556239106,-300.0,0.0002186,2]
[345940101,1734556239116,-300.0,0.0002186,2]
[345940103,1734556239130,-4585.57667445,0.00021861,2]
[345940105,1734556239144,-3682.7,0.00021861,2]
[345940107,1734556239155,-10133.0,0.00021861,2]
[345940335,1734556241343,-6498.72332555,0.00021861,2]
[345940337,1734556241353,-623.77582506,0.00021876,2]
[345940339,1734556241362,-1019.71578809,0.00021976,2]
[345940341,1734556241373,-5874.1799275,0.0002204,2]
[345940343,1734556241382,-336.6139671,0.00022176,2]
[345940345,1734556241391,-180.204753,0.00022473,2]
[345940347,1734556241401,-1019.71578805,0.00022515,2]
[345940349,1734556241410,-150.513,0.0002252,2]
[345940351,1734556241419,-264.9573818,0.00022658,2]
[345940353,1734556241429,-153.0764359,0.00022658,2]
[345940355,1734556241438,-360.683,0.000228,2]
[345940357,1734556241447,-175.0,0.00023014,2]
[345940359,1734556241456,-1019.71578805,0.00023055,2]
[345940362,1734556241466,-172.359444,0.00023142,2]
[345940364,1734556241475,-699.14097824,0.00023342,2]
[345940366,1734556241486,-164.43305,0.00023435,2]
[345940368,1734556241496,-699.14097824,0.00023452,2]
[345940370,1734556241507,-10445.75867062,0.00023534,2]
[345940372,1734556241516,-699.14097824,0.00023562,2]
[345940374,1734556241526,-181.801877,0.00023562,2]
[345940376,1734556241535,-1019.71578805,0.00023594,2]
[345940378,1734556241545,-10445.75867062,0.00023663,2]
[345940380,1734556241555,-699.14097824,0.00023671,2]
[345940382,1734556241564,-420.0,0.00023757,2]
[345940384,1734556241575,-405.533812,0.000238,2]
[345940386,1734556241586,-699.14097824,0.00023808,2]
[345940388,1734556241595,-157.78868998,0.000239,2]
[345940390,1734556241604,-230.2622946,0.000239,2]
[345940392,1734556241614,-699.14097824,0.00023918,2]
[345940394,1734556241624,-500.0,0.00023973,2]
[345940396,1734556241635,-500.0,0.00023973,2]
[345940398,1734556241644,-151.0,0.00023999,2]
[345940400,1734556241653,-246.08801694,0.00023999,2]
[345940402,1734556241663,-239.28461723,0.00023999,2]
[345940404,1734556241672,-500.0,0.00023999,2]
[345940406,1734556241682,-200.0,0.00023999,2]
[345940408,1734556241691,-500.0,0.00023999,2]
[345940410,1734556241700,-500.0,0.00023999,2]
[345940412,1734556241709,-500.0,0.00023999,2]
[345940414,1734556241718,-500.0,0.00023999,2]
[345940416,1734556241727,-500.0,0.00023999,2]
[345940418,1734556241736,-500.0,0.00023999,2]
[345940420,1734556241745,-500.0,0.00023999,2]
[345940422,1734556241755,-500.0,0.00023999,2]
[345940424,1734556241764,-500.0,0.00023999,2]
[345940426,1734556241773,-500.0,0.00023999,2]
[345940428,1734556241782,-255.88129225,0.00023999,2]
[345940430,1734556241791,-500.0,0.00023999,2]
[345940431,1734556241800,-500.0,0.00023999,2]
[345940433,1734556241810,-500.0,0.00023999,2]
[345940435,1734556241819,-571.11265313,0.00023999,2]
[345940437,1734556241829,-343.89040552,0.00023999,2]
[345940439,1734556241839,-191.36875591,0.00023999,2]
[345940441,1734556241849,-244.82726917,0.00023999,2]
[345940443,1734556241858,-500.0,0.00023999,2]
[345940445,1734556241867,-377.21515443,0.00023999,2]
[345940447,1734556241879,-500.0,0.00023999,2]
[345940449,1734556241888,-500.0,0.00023999,2]
[345940451,1734556241897,-500.0,0.00023999,2]
[345940453,1734556241906,-500.0,0.00023999,2]
[345940455,1734556241915,-500.0,0.00023999,2]
[345940457,1734556241924,-500.0,0.00023999,2]
[345940459,1734556241933,-500.0,0.00023999,2]
[345940461,1734556241943,-500.0,0.00023999,2]
[345940463,1734556241952,-500.0,0.00023999,2]
[345940465,1734556241961,-500.0,0.00023999,2]
[345940467,1734556241971,-500.0,0.00023999,2]
[345940469,1734556241980,-500.0,0.00023999,2]
[345940471,1734556241990,-500.0,0.00023999,2]
[345940472,1734556241999,-500.0,0.00023999,2]
[345940475,1734556242009,-500.0,0.00023999,2]
[345940476,1734556242019,-500.0,0.00023999,2]
[345940478,1734556242030,-500.0,0.00023999,2]
[345940480,1734556242041,-500.0,0.00023999,2]
[345940482,1734556242051,-500.0,0.00023999,2]
[345940484,1734556242062,-113709.07054837,0.00024,4]
[345940486,1734556242072,-150148.34554516,0.00024,4]
[345940488,1734556242081,-10002.33,0.00024,4]
[345940490,1734556242092,-7330.0,0.00024,4]
[345940492,1734556242102,-9489.16785337,0.00024,4]
[345940494,1734556242111,-5782.0,0.00024,3]
[345940496,1734556242121,-699.14097824,0.00024027,2]
[345940498,1734556242136,-420.0,0.00024045,2]
[345940500,1734556242145,-230.26229457,0.00024064,2]
[345940502,1734556242154,-1881.33,0.00024109,2]
[345940504,1734556242163,-1019.71578805,0.00024134,2]
[345940506,1734556242172,-699.14097824,0.00024137,2]
[345940508,1734556242181,-179.0,0.00024164,2]
[345940510,1734556242191,-230.26229457,0.00024229,2]
[345940512,1734556242200,-699.14097824,0.00024247,2]
[345940514,1734556242211,-699.14097824,0.00024356,2]
[345940516,1734556242220,-150.122,0.00024377,2]
[345940518,1734556242229,-248.567,0.00024377,2]
[345940520,1734556242239,-2296.55,0.00024377,2]
[345940522,1734556242248,-533.0,0.00024377,2]
[345940524,1734556242258,-2366.0,0.00024377,2]
[345940526,1734556242267,-230.26229457,0.00024393,2]
[345940528,1734556242276,-300.0,0.000244,11]
[345940530,1734556242285,-699.14097824,0.00024466,2]
[345940532,1734556242295,-873.71,0.000245,2]
[345940534,1734556242306,-999.87994467,0.00024521,2]
[345940536,1734556242315,-553.74086493,0.00024521,2]
[345940538,1734556242324,-230.26229457,0.00024557,2]
[345940540,1734556242334,-699.14097824,0.00024575,2]
[345940542,1734556242344,-502.4733482,0.00024657,6]
[345940544,1734556242353,-500.0,0.00024657,6]
[345940546,1734556242363,-502.3362861,0.00024657,6]
[345940548,1734556242376,-485.70053789,0.00024657,6]
[345940550,1734556242386,-509.66346961,0.00024657,6]
[345940552,1734556242395,-505.42240743,0.00024657,6]
[345940553,1734556242405,-497.4566339,0.00024657,6]
[345940555,1734556242415,-500.0,0.00024657,6]
[345940558,1734556242424,-255.39971597,0.00024657,6]
[345940559,1734556242433,-296.70134851,0.00024657,6]
[345940561,1734556242443,-501.21348627,0.00024657,9]
[345940563,1734556242452,-500.0,0.00024657,6]
[345940565,1734556242461,-500.0,0.00024657,6]
[345940567,1734556242471,-500.0,0.00024657,6]
[345940569,1734556242483,-504.16278896,0.00024657,6]
[345940571,1734556242493,-501.3626067,0.00024657,6]
[345940573,1734556242503,-500.0,0.00024657,6]
[345940575,1734556242512,-500.0,0.00024657,6]
[345940577,1734556242522,-500.0,0.00024657,6]
[345940579,1734556242533,-500.0,0.00024657,6]
[345940581,1734556242542,-500.0,0.00024657,6]
[345940583,1734556242551,-528.28,0.00024657,6]
[345940585,1734556242561,-500.0,0.00024657,6]
[345940587,1734556242570,-500.0,0.00024657,6]
[345940589,1734556242580,-500.0,0.00024657,6]
[345940591,1734556242589,-500.0,0.00024657,6]
[345940593,1734556242598,-500.0,0.00024657,6]
[345940595,1734556242607,-500.0,0.00024657,6]
[345940597,1734556242617,-500.0,0.00024657,6]
[345940599,1734556242629,-500.0,0.00024657,6]
[345940601,1734556242637,-500.0,0.00024657,6]
[345940603,1734556242647,-500.71279426,0.00024657,6]
[345940605,1734556242657,-500.0,0.00024657,2]
[345940607,1734556242666,-500.0,0.00024657,6]
[345940609,1734556242675,-503.21825977,0.00024657,6]
[345940611,1734556242684,-500.0,0.00024657,6]
[345940613,1734556242693,-500.0,0.00024657,6]
[345940615,1734556242702,-311.9836919,0.00024657,6]
[345940617,1734556242712,-285.00046668,0.00024657,6]
[345940619,1734556242721,-544.75581202,0.00024657,6]
[345940620,1734556242731,-228.23623091,0.00024657,6]
[345940622,1734556242740,-500.0,0.00024657,6]
[345940624,1734556242749,-500.0,0.00024657,6]
[345940626,1734556242759,-500.0,0.00024657,6]
[345940628,1734556242768,-500.0,0.00024657,6]
[345940630,1734556242777,-500.0,0.00024657,6]
[345940632,1734556242787,-500.0,0.00024657,6]
[345940634,1734556242796,-500.0,0.00024657,6]
[345940636,1734556242805,-500.0,0.00024657,6]
[345940639,1734556242815,-500.0,0.00024657,6]
[345940641,1734556242824,-1000.0,0.00024657,6]
[345940642,1734556242833,-500.0,0.00024657,6]
[345940645,1734556242843,-500.0,0.00024657,6]
[345940646,1734556242852,-505.10984882,0.00024657,6]
[345940648,1734556242861,-500.0,0.00024657,6]
[345940650,1734556242870,-500.0,0.00024657,6]
[345940652,1734556242881,-500.0,0.00024657,6]
[345940654,1734556242891,-500.0,0.00024657,6]
[345940656,1734556242902,-500.0,0.00024657,6]
[345940658,1734556242911,-505.26077932,0.00024657,6]
[345940660,1734556242921,-500.0,0.00024657,6]
[345940662,1734556242930,-1671.7,0.00024657,6]
[345940664,1734556242939,-498.61707561,0.00024657,6]
[345940666,1734556242949,-500.0,0.00024657,6]
[345940668,1734556242958,-500.0,0.00024657,6]
[345940670,1734556242967,-500.0,0.00024657,6]
[345940672,1734556242977,-403.36272223,0.00024657,6]
[345940674,1734556242986,-608.87446876,0.00024657,6]
[345940676,1734556242995,-500.0,0.00024657,6]
[345940678,1734556243004,-500.0,0.00024657,6]
[345940680,1734556243013,-500.0,0.00024657,6]
[345940682,1734556243022,-639.61,0.00024657,6]
[345940683,1734556243032,-500.0,0.00024657,6]
[345940685,1734556243041,-500.0,0.00024657,6]
[345940687,1734556243050,-500.0,0.00024657,6]
[345940689,1734556243060,-500.0,0.00024657,6]
[345940691,1734556243069,-501.9639455,0.00024657,6]
[345940693,1734556243079,-500.0,0.00024657,6]
[345940695,1734556243088,-500.0,0.00024657,6]
[345940698,1734556243097,-500.0,0.00024657,6]
[345940701,1734556243106,-500.0,0.00024657,6]
[345940704,1734556243115,-1627.93,0.00024657,6]
[345940707,1734556243127,-500.0,0.00024657,6]
[345940709,1734556243137,-1597.93,0.00024657,6]
[345940711,1734556243146,-500.72872608,0.00024657,6]
[345940713,1734556243155,-500.0,0.00024657,6]
[345940715,1734556243164,-500.0,0.00024657,6]
[345940717,1734556243173,-500.0,0.00024657,6]
[345940719,1734556243183,-500.0,0.00024657,6]
[345940722,1734556243192,-500.0,0.00024657,6]
[345940725,1734556243201,-500.0,0.00024657,6]
[345940728,1734556243210,-500.0,0.00024657,6]
[345940731,1734556243220,-500.0,0.00024657,6]
[345940732,1734556243229,-531.74676739,0.00024657,6]
[345940736,1734556243239,-500.0,0.00024657,6]
[345940740,1734556243248,-500.0,0.00024657,6]
[345940744,1734556243258,-589.07,0.00024657,6]
[345940748,1734556243267,-1695.81,0.00024657,2]
[345940751,1734556243276,-1110.59,0.00024657,6]
[345940755,1734556243286,-500.0,0.00024657,6]
[345940758,1734556243295,-504.05056299,0.00024657,6]
[345940761,1734556243305,-500.0,0.00024657,6]
[345940764,1734556243314,-500.0,0.00024657,6]
[345940767,1734556243323,-915.38,0.00024657,6]
[345940769,1734556243332,-500.0,0.00024657,6]
[345940772,1734556243342,-500.0,0.00024657,6]
[345940775,1734556243352,-1156.31,0.00024657,6]
[345940778,1734556243361,-654.43,0.00024657,6]
[345940780,1734556243370,-500.0,0.00024657,6]
[345940782,1734556243381,-500.0,0.00024657,6]
[345940784,1734556243391,-811.19,0.00024657,6]
[345940786,1734556243400,-500.0,0.00024657,6]
[345940788,1734556243410,-500.0,0.00024657,6]
[345940790,1734556243420,-500.0,0.00024657,6]
[345940792,1734556243429,-500.0,0.00024657,6]
[345940794,1734556243438,-168.0,0.00024657,6]
[345940796,1734556243447,-500.0,0.00024657,6]
[345940798,1734556243457,-500.0,0.00024657,6]
[345940800,1734556243466,-500.0,0.00024657,6]
[345940802,1734556243475,-500.0,0.00024657,6]
[345940803,1734556243485,-500.0,0.00024657,6]
[345940805,1734556243496,-500.0,0.00024657,6]
[345940807,1734556243506,-634.04,0.00024657,6]
[345940809,1734556243516,-500.0,0.00024657,6]
[345940811,1734556243525,-500.0,0.00024657,6]
[345940813,1734556243535,-500.0,0.00024657,6]
[345940815,1734556243544,-629.35,0.00024657,6]
[345940817,1734556243554,-500.0,0.00024657,6]
[345940819,1734556243563,-500.0,0.00024657,6]
[345940821,1734556243574,-643.477472,0.00024657,6]
[345940823,1734556243585,-500.0,0.00024657,6]
[345940825,1734556243594,-500.0,0.00024657,6]
[345940827,1734556243603,-500.0,0.00024657,6]
[345940829,1734556243613,-501.72158891,0.00024657,6]
[345940831,1734556243623,-500.0,0.00024657,6]
[345940833,1734556243633,-500.0,0.00024657,6]
[345940834,1734556243643,-500.0,0.00024657,6]
[345940836,1734556243652,-500.0,0.00024657,6]
[345940838,1734556243661,-585.05,0.00024657,6]
[345940840,1734556243671,-661.57,0.00024657,6]
[345940842,1734556243680,-500.0,0.00024657,6]
[345940844,1734556243690,-500.0,0.00024657,6]
[345940846,1734556243699,-1079.3,0.00024657,6]
[345940848,1734556243709,-500.0,0.00024657,6]
[345940850,1734556243718,-500.0,0.00024657,6]
[345940852,1734556243728,-500.0,0.00024657,6]
[345940854,1734556243737,-500.0,0.00024657,6]
[345940855,1734556243746,-500.0,0.00024657,6]
[345940856,1734556243756,-500.0,0.00024657,2]
[345940857,1734556243764,-500.0,0.00024657,6]
[345940858,1734556243774,-510.88,0.00024657,6]
[345940859,1734556243783,-500.0,0.00024657,6]
[345940860,1734556243792,-500.0,0.00024657,6]
[345940861,1734556243801,-500.0,0.00024657,6]
[345940862,1734556243811,-1077.77,0.00024657,6]
[345940863,1734556243820,-500.0,0.00024657,6]
[345940864,1734556243828,-500.0,0.00024657,6]
[345940865,1734556243837,-233.97653637,0.00024657,6]
[345940866,1734556243846,-500.0,0.00024657,6]
[345940867,1734556243855,-500.0,0.00024657,6]
[345940868,1734556243864,-501.79739297,0.00024657,6]
[345940869,1734556243876,-500.0,0.00024657,6]
[345940870,1734556243885,-501.43522996,0.00024657,6]
[345940871,1734556243894,-2030.65,0.00024657,2]
[345940872,1734556243903,-544.70096116,0.00024657,6]
[345940873,1734556243911,-500.0,0.00024657,6]
[345940874,1734556243920,-500.0,0.00024657,6]
[345940875,1734556243929,-507.92175083,0.00024657,6]
[345940876,1734556243939,-322.89701307,0.00024657,6]
[345940877,1734556243950,-500.0,0.00024657,6]
[345940878,1734556243960,-2879.75,0.00024657,2]
[345940880,1734556243969,-500.0,0.00024657,6]
[345940882,1734556243978,-1014.37,0.00024657,6]
[345940884,1734556243988,-504.08895605,0.00024657,6]
[345940886,1734556243997,-500.0,0.00024657,6]
[345940888,1734556244008,-500.0,0.00024657,6]
[345940891,1734556244017,-500.0,0.00024657,6]
[345940894,1734556244027,-983.12,0.00024657,6]
[345940897,1734556244036,-500.0,0.00024657,6]
[345940900,1734556244045,-500.0,0.00024657,6]
[345940903,1734556244055,-500.0,0.00024657,6]
[345940905,1734556244064,-500.0,0.00024657,6]
[345940907,1734556244073,-500.0,0.00024657,6]
[345940909,1734556244082,-575.01,0.00024657,6]
[345940911,1734556244091,-500.0,0.00024657,6]
[345940913,1734556244100,-504.12752646,0.00024657,6]
[345940915,1734556244109,-500.0,0.00024657,6]
[345940917,1734556244118,-500.0,0.00024657,6]
[345940919,1734556244131,-504.88016012,0.00024657,6]
[345940921,1734556244140,-502.23157829,0.00024657,6]
[345940923,1734556244149,-500.0,0.00024657,6]
[345940925,1734556244158,-500.0,0.00024657,6]
[345940927,1734556244168,-5360.05,0.00024657,6]
[345940929,1734556244177,-1026.73,0.00024657,6]
[345940931,1734556244186,-500.0,0.00024657,6]
[345940933,1734556244195,-500.0,0.00024657,6]
[345940935,1734556244205,-500.0,0.00024657,6]
[345940937,1734556244214,-500.0,0.00024657,9]
[345940939,1734556244224,-461.36065662,0.00024657,6]
[345940941,1734556244233,-500.0,0.00024657,6]
[345940943,1734556244243,-572.95705586,0.00024657,6]
[345940945,1734556244252,-500.0,0.00024657,6]
[345940946,1734556244261,-504.0302554,0.00024657,6]
[345940947,1734556244270,-501.79216944,0.00024657,6]
[345940948,1734556244280,-500.0,0.00024657,6]
[345940949,1734556244290,-500.0,0.00024657,6]
[345940950,1734556244300,-500.0,0.00024657,6]
[345940951,1734556244310,-500.0,0.00024657,6]
[345940952,1734556244320,-500.0,0.00024657,6]
[345940953,1734556244329,-580.99,0.00024657,6]
[345940954,1734556244339,-500.0,0.00024657,6]
[345940955,1734556244349,-562.57,0.00024657,2]
[345940958,1734556244359,-500.0,0.00024657,6]
[345940960,1734556244369,-500.0,0.00024657,6]
[345940962,1734556244383,-501.17921644,0.00024657,6]
[345940963,1734556244393,-500.0,0.00024657,6]
[345940965,1734556244402,-502.42405366,0.00024657,6]
[345940967,1734556244411,-500.0,0.00024657,6]
[345940969,1734556244421,-500.0,0.00024657,6]
[345940971,1734556244431,-565.04,0.00024657,6]
[345940973,1734556244440,-500.0,0.00024657,6]
[345940975,1734556244449,-500.0,0.00024657,6]
[345940977,1734556244459,-500.0,0.00024657,6]
[345940979,1734556244469,-500.0,0.00024657,6]
[345940981,1734556244480,-500.0,0.00024657,6]
[345940983,1734556244493,-500.0,0.00024657,6]
[345940985,1734556244503,-500.0,0.00024657,6]
[345940986,1734556244512,-580.71,0.00024657,6]
[345940988,1734556244523,-4318.09,0.00024657,6]
[345940990,1734556244532,-504.80506325,0.00024657,6]
[345940992,1734556244542,-758.26,0.00024657,6]
[345940994,1734556244551,-500.0,0.00024657,6]
[345940996,1734556244561,-20216.68,0.00024657,6]
[345940998,1734556244571,-504.41322177,0.00024657,6]
[345941000,1734556244581,-500.0,0.00024657,6]
[345941002,1734556244590,-500.0,0.00024657,6]
[345941005,1734556244600,-500.0,0.00024657,6]
[345941006,1734556244609,-502.93807487,0.00024657,6]
[345941008,1734556244619,-500.0,0.00024657,6]
[345941009,1734556244634,-500.0,0.00024657,6]
[345941010,1734556244644,-500.0,0.00024657,6]
[345941011,1734556244654,-500.0,0.00024657,6]
[345941012,1734556244664,-502.24087025,0.00024657,6]
[345941013,1734556244674,-500.0,0.00024657,6]
[345941014,1734556244684,-500.0,0.00024657,6]
[345941015,1734556244693,-37834.84114381,0.00024657,6]
[345941033,1734556244872,-1141.963903,0.000235,2]
[345941035,1734556244886,-1000.0,0.00024,2]
[345941036,1734556244895,-6571.79885619,0.00024657,6]
[345941038,1734556244904,-500.0,0.00024657,6]
[345941040,1734556244913,-500.0,0.00024657,6]
[345941042,1734556244922,-393.28534813,0.00024657,6]
[345941059,1734556245084,-106.71465187,0.00024657,6]
[345941061,1734556245093,-1361.24534813,0.00024657,6]
[345942674,1734557131935,164.268205,0.00013973,2]
[345942757,1734557437921,-210.66568821,0.0002201,16]
[345942758,1734557437932,-68.16731079,0.00022796,2]
[345942759,1734557437946,-578.39,0.00022796,2]
[345942760,1734557437958,-2550.21551821,0.00022796,2]
[345942761,1734557437968,-893.6702325,0.00022843,2]
[345942762,1734557437979,-153.0,0.00022929,2]
[345942763,1734557437988,-153.0,0.00022929,2]
[345942764,1734557437998,-372.822932,0.00022965,2]
[345942765,1734557438008,-345.567,0.0002343,2]
[345942766,1734557438018,-164.268205,0.00023435,2]
[345942767,1734557438027,-181.801877,0.00023562,2]
[345942768,1734557438038,-1835.3155764,0.00023872,2]
[345942769,1734557438047,-306.0,0.00024356,2]
[345942770,1734557438057,-300.0,0.00024399,2]
[345942771,1734557438067,-300.0,0.00024399,2]
[345942772,1734557438080,-2988.42385106,0.000244,2]
[345942773,1734557438089,-2152.0,0.00024426,2]
[345942774,1734557438102,-533.0,0.00024426,2]
[345942775,1734557438112,-964.99,0.00024426,2]
[345942776,1734557438121,-500.0,0.00024473,2]
[345942777,1734557438131,-167.49923206,0.00024499,2]
[345942778,1734557438141,-224.54616832,0.00024499,2]
[345942779,1734557438151,-500.0,0.00024499,2]
[345942780,1734557438161,-174.56807257,0.00024499,2]
[345942781,1734557438170,-208.5794616,0.00024499,2]
[345942782,1734557438180,-500.0,0.00024499,2]
[345942783,1734557438189,-299.04097288,0.00024499,2]
[345942784,1734557438199,-193.86969657,0.00024499,2]
[345942785,1734557438209,-322.61991848,0.00024499,2]
[345942786,1734557438221,-1480.32008152,0.00024499,2]
[345942787,1734557438231,-786.05244141,0.000245,2]
[345942788,1734557438251,-20447.01573968,0.000245,2]
[345942907,1734557445998,-7370.0,0.000245,2]
[345943097,1734558219414,188.676188,0.00013973,2]
[345943127,1734558636219,-188.676188,0.00020447,2]
[345943129,1734558636229,-213.61984095,0.00022815,2]
[345943131,1734558636238,-153.0,0.00022892,2]
[345943133,1734558636247,-176.745,0.00022915,2]
[345943135,1734558636258,-1311.69,0.0002304,2]
[345943137,1734558636269,-186.411466,0.00023288,2]
[345943139,1734558636279,-331.298,0.0002343,2]
[345943141,1734558636288,-300.0,0.00024292,2]
[345943143,1734558636299,-300.0,0.00024292,2]
[345943145,1734558636308,-2224.06023027,0.00024293,2]
[345943149,1734558636339,-2425.76690295,0.00024293,2]
[345943154,1734558636379,-5795.9315374,0.00024293,2]
[345943156,1734558636389,-173.96469917,0.00024399,2]
[345943158,1734558636398,-300.0,0.000244,11]
[345943160,1734558636408,-212.31694704,0.000244,7]
[345943163,1734558636417,-212.0390805,0.00024434,2]
[345943165,1734558636426,-500.0,0.00024473,2]
[345943168,1734558636435,-189.415,0.00024499,7]
[345943171,1734558636444,-157.18231783,0.00024499,2]
[345943174,1734558636454,-1727.82,0.00024499,2]
[345943177,1734558636463,-60071.03688127,0.00024499,2]
[345943180,1734558636473,-3450.66649443,0.00024499,2]
[345943182,1734558636482,-786.34,0.000245,2]
[345943185,1734558636492,-105929.27944195,0.000245,5]
[345943342,1734558638207,-6712.75423015,0.000245,5]
[345943717,1734558643043,-1031.51576,0.000245,5]
[345943718,1734558643130,-1557.87662,0.000245,5]
[345943743,1734558646113,-25769.06,0.000245,5]
[345943746,1734558646125,-18010.45478315,0.000245,5]
[345943835,1734559117637,186.117412,0.00013973,2]
[345943837,1734559541433,498.699,0.000255,120]
[345943838,1734559571021,10000.0,0.00016162,2]
[345945887,1734559832284,-186.117412,0.00020447,2]
[345945889,1734559832294,-176.745,0.00022186,2]
[345945891,1734559832303,-432.6579302,0.00022295,2]
[345945893,1734559832313,-186.411466,0.0002257,2]
[345945895,1734559832322,-153.0,0.00022842,2]
[345945897,1734559832332,-153.0,0.00022844,2]
[345945899,1734559832342,-383.10227383,0.00023027,2]
[345945902,1734559832362,-182.29297427,0.00023027,2]
[345945904,1734559832372,-317.47,0.0002343,2]
[345945906,1734559832381,-307.91702573,0.00023741,2]
[345945908,1734559832392,-402.10665097,0.00023741,2]
[345945910,1734559832402,-60.12134903,0.000238,2]
[345945922,1734559832503,-343.55762178,0.000238,2]
[345945925,1734559832516,-1001.99172719,0.000238,2]
[345945928,1734559832526,-159.13805305,0.00023999,2]
[345946759,1734559840844,-140.86194695,0.00023999,2]
[345946761,1734559840853,-127.34585259,0.00023999,2]
[345946899,1734559843247,-172.65414741,0.00023999,2]
[345946900,1734559843257,-1613.30638885,0.00024,2]
[345947128,1734559979919,183.828786,0.00013973,2]
[345947131,1734560605222,150.71466955,0.000255,120]
[345947146,1734560988479,182.816508,0.00013973,2]
[345947201,1734561032649,-160.0,0.0002,15]
[345947203,1734561032659,-182.816508,0.00020447,2]
[345947205,1734561032668,-180.0,0.00022,2]
[345947207,1734561032677,-180.0,0.00022192,2]
[345947209,1734561032687,-329.6597276,0.000225,3]
[345947606,1734561036577,-201.2034791,0.00022343,2]
[345947608,1734561036588,-262.80735083,0.000225,3]
[345947610,1734561036600,-2008.53780713,0.000225,3]
[345947612,1734561036613,-2398.99511444,0.000225,3]
[345947614,1734561036623,-153.0,0.00022787,2]
[345947617,1734561036632,-180.0,0.00023014,2]
[345947619,1734561036641,-303.976,0.0002328,2]
[345947621,1734561036651,-1073.99342132,0.0002376,2]
[345947623,1734561036660,-190.1477589,0.000239,2]
[345947625,1734561036669,-151.532,0.00023998,5]
[345947627,1734561036678,-300.0,0.00023999,2]
[345947629,1734561036688,-300.0,0.00023999,2]
[345947631,1734561036697,-710.80026512,0.00024,2]
[345947633,1734561036708,-2341.80257104,0.00024,2]
[345947821,1734561038528,-8485.13768142,0.00024,2]
[345947823,1734561038540,-3880.28497612,0.00024,2]
[345948371,1734561043529,-7002.2405054,0.00024,2]
[345948379,1734561043595,-896.38552367,0.00024,2]
[345948381,1734561043608,-20535.97383658,0.00024,2]
[345948383,1734561043617,-1725.33324722,0.00024,2]
[345948385,1734561043627,-7985.82565204,0.00024,2]
[345948390,1734561043664,-343.53789142,0.00024,2]
[345948392,1734561043675,-775.74325356,0.00024,2]
[345948618,1734561046626,-500.0,0.00023999,2]
[345948619,1734561046636,-74.47949418,0.00023999,2]
[345948620,1734561046647,-425.52050582,0.00023999,2]